[Event "Early Titled Tuesday Blitz | February 8 2022"]
[White "Onyshchuk, Volodymyr"]
[Black "Aradhya, Garg"]
[WhiteFideId "14114038"]
[BlackFideId "25006746"]
[WhiteElo "2642"]
[BlackElo "2169"]
[Result "1-0"]
[Round "02"]
[TimeControl "180+1"]
[Date "2022.02.08"]
[WhiteClock "0:00:19"]
[BlackClock "0:00:19"]

1. e4 {[%clk 0:02:55]}  e5 {[%clk 0:02:59]} 2. Nf3 {[%clk 0:02:49]}  Nc6 {[%clk 0:03:00]} 3. Bc4 {[%clk 0:02:49]}  Nf6 {[%clk 0:02:59]} 4. d3 {[%clk 0:02:49]}  Bc5 {[%clk 0:02:59]} 5. O-O {[%clk 0:02:42]}  O-O {[%clk 0:02:58]} 6. c3 {[%clk 0:02:43]}  d6 {[%clk 0:02:57]} 7. b4 {[%clk 0:02:40]}  Bb6 {[%clk 0:02:57]} 8. h3 {[%clk 0:02:37]}  Ne7 {[%clk 0:02:56]} 9. Re1 {[%clk 0:02:30]}  Ng6 {[%clk 0:02:54]} 10. a4 {[%clk 0:02:30]}  c6 {[%clk 0:02:53]} 11. a5 {[%clk 0:02:22]}  Bc7 {[%clk 0:02:53]} 12. Bb3 {[%clk 0:02:16]}  d5 {[%clk 0:02:51]} 13. Nbd2 {[%clk 0:02:06]}  h6 {[%clk 0:02:22]} 14. Bc2 {[%clk 0:01:59]}  Nh5 {[%clk 0:02:15]} 15. Nf1 {[%clk 0:01:57]}  Nhf4 {[%clk 0:02:15]} 16. Ng3 {[%clk 0:01:55]}  Qf6 {[%clk 0:02:13]} 17. d4 {[%clk 0:01:46]}  exd4 {[%clk 0:02:11]} 18. cxd4 {[%clk 0:01:44]}  dxe4 {[%clk 0:02:08]} 19. Nxe4 {[%clk 0:01:44]}  Qd8 {[%clk 0:02:07]} 20. Nc5 {[%clk 0:01:34]}  Rb8 {[%clk 0:01:51]} 21. Bxf4 {[%clk 0:01:04]}  Nxf4 {[%clk 0:01:48]} 22. Qd2 {[%clk 0:01:03]}  Qd5 {[%clk 0:01:31]} 23. Re4 {[%clk 0:00:59]}  Bf5 {[%clk 0:01:26]} 24. Bb3 {[%clk 0:00:53]}  Qd6 {[%clk 0:01:25]} 25. Re5 {[%clk 0:00:51]}  Be6 {[%clk 0:01:22]} 26. Nxe6 {[%clk 0:00:31]}  fxe6 {[%clk 0:01:17]} 27. Rae1 {[%clk 0:00:31]}  Nxh3+ {[%clk 0:00:52]} 28. Kf1 {[%clk 0:00:27]}  Nf4 {[%clk 0:00:51]} 29. Rxe6 {[%clk 0:00:27]}  Nxe6 {[%clk 0:00:26]} 30. Rxe6 {[%clk 0:00:26]}  Qd8 {[%clk 0:00:26]} 31. Re8+ {[%clk 0:00:23]}  Kh8 {[%clk 0:00:25]} 32. Rxd8 {[%clk 0:00:23]}  Rbxd8 {[%clk 0:00:26]} 33. Qd3 {[%clk 0:00:23]}  Rf6 {[%clk 0:00:25]} 34. Nh4 {[%clk 0:00:20]}  g5 {[%clk 0:00:23]} 35. Nf5 {[%clk 0:00:20]}  Rdf8 {[%clk 0:00:23]} 36. g4 {[%clk 0:00:20]}  Bf4 {[%clk 0:00:20]} 37. Qe4 {[%clk 0:00:20]}  h5 {[%clk 0:00:19]} 38. Qe7 {[%clk 0:00:19]} 1-0


[Site "https://www.chess.com"]

[Event "Early Titled Tuesday Blitz | February 8 2022"]
[White "Orozbaev, Eldiar"]
[Black "Yoo, Christopher Woojin"]
[WhiteFideId "13802240"]
[BlackFideId "30909694"]
[WhiteElo "2050"]
[BlackElo "2105"]
[Result "1-0"]
[Round "02"]
[TimeControl "180+1"]
[Date "2022.02.08"]
[WhiteClock "0:01:10"]
[BlackClock "0:00:01"]

1. e4 {[%clk 0:03:00]}  c5 {[%clk 0:02:54]} 2. c3 {[%clk 0:03:00]}  Nf6 {[%clk 0:02:52]} 3. e5 {[%clk 0:03:01]}  Nd5 {[%clk 0:02:53]} 4. d4 {[%clk 0:03:02]}  cxd4 {[%clk 0:02:54]} 5. cxd4 {[%clk 0:03:02]}  Nc6 {[%clk 0:02:54]} 6. Nf3 {[%clk 0:03:03]}  d6 {[%clk 0:02:54]} 7. Nc3 {[%clk 0:03:03]}  e6 {[%clk 0:02:48]} 8. Bd3 {[%clk 0:03:03]}  Be7 {[%clk 0:02:44]} 9. Qe2 {[%clk 0:03:00]}  Nxc3 {[%clk 0:02:14]} 10. bxc3 {[%clk 0:03:01]}  dxe5 {[%clk 0:02:13]} 11. Nxe5 {[%clk 0:02:56]}  Nxe5 {[%clk 0:02:11]} 12. dxe5 {[%clk 0:02:56]}  Bd7 {[%clk 0:02:03]} 13. O-O {[%clk 0:02:52]}  Bc6 {[%clk 0:02:02]} 14. c4 {[%clk 0:02:40]}  Qd4 {[%clk 0:01:55]} 15. Bb2 {[%clk 0:02:37]}  Qh4 {[%clk 0:01:55]} 16. Rfd1 {[%clk 0:02:25]}  O-O {[%clk 0:01:54]} 17. g3 {[%clk 0:02:25]}  Qh3 {[%clk 0:01:50]} 18. Be4 {[%clk 0:02:25]}  Rab8 {[%clk 0:01:00]} 19. Bxc6 {[%clk 0:02:15]}  bxc6 {[%clk 0:01:00]} 20. Rd7 {[%clk 0:02:14]}  Bc5 {[%clk 0:01:00]} 21. Rad1 {[%clk 0:02:10]}  Qf5 {[%clk 0:00:56]} 22. Bd4 {[%clk 0:02:01]}  Bxd4 {[%clk 0:00:56]} 23. R1xd4 {[%clk 0:02:02]}  Qb1+ {[%clk 0:00:43]} 24. Kg2 {[%clk 0:02:02]}  Rb2 {[%clk 0:00:41]} 25. Qf3 {[%clk 0:01:56]}  h6 {[%clk 0:00:10]} 26. Rxa7 {[%clk 0:01:44]}  Rxa2 {[%clk 0:00:09]} 27. Rxf7 {[%clk 0:01:23]}  Rxf7 {[%clk 0:00:08]} 28. Rd8+ {[%clk 0:01:23]}  Kh7 {[%clk 0:00:08]} 29. Qxf7 {[%clk 0:01:24]}  Qe4+ {[%clk 0:00:08]} 30. Qf3 {[%clk 0:01:24]}  Qxe5 {[%clk 0:00:05]} 31. g4 {[%clk 0:01:10]}  Qg5 {[%clk 0:00:01]} 32. Qd3+ {[%clk 0:01:09]}  Qg6 {[%clk 0:00:01]} 33. Rh8+ {[%clk 0:01:09]}  Kxh8 {[%clk 0:00:01]} 34. Qxg6 {[%clk 0:01:10]} 1-0


[Site "https://www.chess.com"]

[Event "Early Titled Tuesday Blitz | February 8 2022"]
[White "Osmak, Yuliia"]
[Black "Bocharov, Dmitry"]
[WhiteFideId "14101602"]
[BlackFideId "4138716"]
[WhiteElo "2302"]
[BlackElo "2541"]
[Result "0-1"]
[Round "02"]
[TimeControl "180+1"]
[Date "2022.02.08"]
[WhiteClock "0:00:03"]
[BlackClock "0:00:36"]

1. e4 {[%clk 0:03:00]}  c5 {[%clk 0:02:59]} 2. c3 {[%clk 0:03:00]}  Nf6 {[%clk 0:02:58]} 3. e5 {[%clk 0:03:00]}  Nd5 {[%clk 0:02:59]} 4. Nf3 {[%clk 0:02:59]}  d6 {[%clk 0:02:58]} 5. exd6 {[%clk 0:02:57]}  e6 {[%clk 0:02:53]} 6. d4 {[%clk 0:02:55]}  cxd4 {[%clk 0:02:53]} 7. cxd4 {[%clk 0:02:55]}  Bxd6 {[%clk 0:02:53]} 8. Bc4 {[%clk 0:02:51]}  O-O {[%clk 0:02:47]} 9. O-O {[%clk 0:02:50]}  Nc6 {[%clk 0:02:47]} 10. Nc3 {[%clk 0:02:48]}  Nxc3 {[%clk 0:02:40]} 11. bxc3 {[%clk 0:02:49]}  b6 {[%clk 0:02:40]} 12. Bd3 {[%clk 0:02:39]}  g6 {[%clk 0:02:04]} 13. Bh6 {[%clk 0:02:34]}  Re8 {[%clk 0:02:04]} 14. Re1 {[%clk 0:02:11]}  Bb7 {[%clk 0:02:00]} 15. h4 {[%clk 0:02:03]}  Rc8 {[%clk 0:01:53]} 16. Rc1 {[%clk 0:01:57]}  Ne7 {[%clk 0:01:53]} 17. h5 {[%clk 0:01:51]}  Nf5 {[%clk 0:01:51]} 18. Bg5 {[%clk 0:01:50]}  Qc7 {[%clk 0:01:42]} 19. hxg6 {[%clk 0:01:43]}  hxg6 {[%clk 0:01:42]} 20. Ne5 {[%clk 0:01:38]}  Kg7 {[%clk 0:01:41]} 21. Qg4 {[%clk 0:01:33]}  Rh8 {[%clk 0:01:35]} 22. f3 {[%clk 0:01:26]}  Rh5 {[%clk 0:01:17]} 23. Be4 {[%clk 0:00:33]}  Rch8 {[%clk 0:01:12]} 24. Kf2 {[%clk 0:00:33]}  Bxe5 {[%clk 0:01:08]} 25. dxe5 {[%clk 0:00:29]}  Qc5+ {[%clk 0:01:05]} 26. Be3 {[%clk 0:00:22]}  Nxe3 {[%clk 0:01:00]} 27. Rxe3 {[%clk 0:00:23]}  Rxe5 {[%clk 0:00:59]} 28. Re1 {[%clk 0:00:16]}  Bxe4 {[%clk 0:00:58]} 29. fxe4 {[%clk 0:00:15]}  f5 {[%clk 0:00:38]} 30. Qg3 {[%clk 0:00:07]}  Rxe4 {[%clk 0:00:38]} 31. Ke2 {[%clk 0:00:02]}  Rxe3+ {[%clk 0:00:36]} 32. Qxe3 {[%clk 0:00:03]}  Qxe3+ {[%clk 0:00:37]} 33. Kxe3 {[%clk 0:00:04]}  Kf6 {[%clk 0:00:37]} 34. Kd4 {[%clk 0:00:04]}  Rc8 {[%clk 0:00:37]} 35. Re2 {[%clk 0:00:03]}  Rc5 {[%clk 0:00:37]} 36. c4 {[%clk 0:00:03]}  e5+ {[%clk 0:00:37]} 37. Kc3 {[%clk 0:00:03]}  f4 {[%clk 0:00:37]} 38. Kb4 {[%clk 0:00:04]}  g5 {[%clk 0:00:37]} 39. Rd2 {[%clk 0:00:04]}  g4 {[%clk 0:00:37]} 40. Rd7 {[%clk 0:00:03]}  Ra5 {[%clk 0:00:36]} 0-1


[Site "https://www.chess.com"]

[Event "Early Titled Tuesday Blitz | February 8 2022"]
[White "Ozkan, Taha"]
[Black "Rudzinska, Michalina"]
[WhiteFideId "34577173"]
[BlackFideId "1172883"]
[WhiteElo "2024"]
[BlackElo "1904"]
[Result "1-0"]
[Round "02"]
[TimeControl "180+1"]
[Date "2022.02.08"]
[WhiteClock "0:02:43"]
[BlackClock "0:02:22"]

1. d4 {[%clk 0:02:55]}  a5 {[%clk 0:02:57]} 2. c4 {[%clk 0:02:55]}  b6 {[%clk 0:02:57]} 3. Nc3 {[%clk 0:02:55]}  Bb7 {[%clk 0:02:57]} 4. e4 {[%clk 0:02:56]}  g6 {[%clk 0:02:56]} 5. f4 {[%clk 0:02:55]}  Bg7 {[%clk 0:02:57]} 6. Nf3 {[%clk 0:02:56]}  d6 {[%clk 0:02:57]} 7. Be3 {[%clk 0:02:56]}  Nd7 {[%clk 0:02:58]} 8. Bd3 {[%clk 0:02:57]}  e6 {[%clk 0:02:59]} 9. O-O {[%clk 0:02:57]}  Ne7 {[%clk 0:02:59]} 10. Qe2 {[%clk 0:02:57]}  O-O {[%clk 0:02:59]} 11. Rae1 {[%clk 0:02:58]}  c5 {[%clk 0:02:58]} 12. d5 {[%clk 0:02:58]}  exd5 {[%clk 0:02:58]} 13. exd5 {[%clk 0:02:59]}  Re8 {[%clk 0:02:56]} 14. Qf2 {[%clk 0:02:56]}  f5 {[%clk 0:02:56]} 15. Ng5 {[%clk 0:02:55]}  Nf6 {[%clk 0:02:55]} 16. Ne6 {[%clk 0:02:54]}  Qd7 {[%clk 0:02:53]} 17. Nb5 {[%clk 0:02:54]}  Bh8 {[%clk 0:02:44]} 18. Nbc7 {[%clk 0:02:53]}  Ng4 {[%clk 0:02:43]} 19. Qf3 {[%clk 0:02:47]}  Rac8 {[%clk 0:02:39]} 20. Nxe8 {[%clk 0:02:46]}  Rxe8 {[%clk 0:02:40]} 21. Bc1 {[%clk 0:02:44]}  Qxe6 {[%clk 0:02:22]} 22. Rxe6 {[%clk 0:02:43]} 1-0


[Site "https://www.chess.com"]

[Event "Early Titled Tuesday Blitz | February 8 2022"]
[White "Pires, Marcos Vinicius Torsani"]
[Black "Warchol, Kamil"]
[WhiteFideId "2118939"]
[BlackFideId "21858241"]
[WhiteElo "2273"]
[BlackElo "1905"]
[Result "0-1"]
[Round "02"]
[TimeControl "180+1"]
[Date "2022.02.08"]
[WhiteClock "0:00:16"]
[BlackClock "0:00:13"]

1. d4 {[%clk 0:03:00]}  d6 {[%clk 0:02:59]} 2. Bf4 {[%clk 0:02:52]}  Bg4 {[%clk 0:02:52]} 3. c4 {[%clk 0:02:45]}  Nd7 {[%clk 0:02:50]} 4. Qb3 {[%clk 0:02:43]}  e5 {[%clk 0:02:42]} 5. dxe5 {[%clk 0:02:40]}  dxe5 {[%clk 0:02:39]} 6. Bg3 {[%clk 0:02:39]}  Nc5 {[%clk 0:02:31]} 7. Qc2 {[%clk 0:02:33]}  e4 {[%clk 0:01:51]} 8. Nc3 {[%clk 0:02:25]}  Nf6 {[%clk 0:01:46]} 9. Rd1 {[%clk 0:02:10]}  Qc8 {[%clk 0:01:37]} 10. h3 {[%clk 0:02:10]}  Bf5 {[%clk 0:01:36]} 11. Qc1 {[%clk 0:01:57]}  c6 {[%clk 0:01:33]} 12. b4 {[%clk 0:01:53]}  Ne6 {[%clk 0:01:31]} 13. a3 {[%clk 0:01:52]}  a5 {[%clk 0:01:29]} 14. Qb2 {[%clk 0:01:49]}  Nh5 {[%clk 0:01:11]} 15. Bh2 {[%clk 0:01:46]}  Nf6 {[%clk 0:01:04]} 16. e3 {[%clk 0:01:42]}  Be7 {[%clk 0:01:02]} 17. Nge2 {[%clk 0:01:40]}  O-O {[%clk 0:01:01]} 18. Nf4 {[%clk 0:01:22]}  axb4 {[%clk 0:00:51]} 19. axb4 {[%clk 0:01:21]}  Rd8 {[%clk 0:00:47]} 20. Be2 {[%clk 0:01:14]}  Rxd1+ {[%clk 0:00:45]} 21. Bxd1 {[%clk 0:01:15]}  Qd8 {[%clk 0:00:44]} 22. O-O {[%clk 0:01:14]}  Qb6 {[%clk 0:00:43]} 23. b5 {[%clk 0:00:55]}  Nc5 {[%clk 0:00:41]} 24. Be2 {[%clk 0:00:51]}  Qa5 {[%clk 0:00:39]} 25. bxc6 {[%clk 0:00:44]}  bxc6 {[%clk 0:00:37]} 26. Rb1 {[%clk 0:00:41]}  h6 {[%clk 0:00:34]} 27. g4 {[%clk 0:00:37]}  Bh7 {[%clk 0:00:30]} 28. Bg3 {[%clk 0:00:37]}  Nd3 {[%clk 0:00:27]} 29. Bxd3 {[%clk 0:00:29]}  exd3 {[%clk 0:00:28]} 30. Rd1 {[%clk 0:00:25]}  Bb4 {[%clk 0:00:26]} 31. Nb1 {[%clk 0:00:22]}  Rd8 {[%clk 0:00:25]} 32. Nh5 {[%clk 0:00:19]}  Nxh5 {[%clk 0:00:20]} 33. gxh5 {[%clk 0:00:20]}  Bf8 {[%clk 0:00:20]} 34. Be5 {[%clk 0:00:19]}  f6 {[%clk 0:00:19]} 35. Bc3 {[%clk 0:00:20]}  Qxh5 {[%clk 0:00:18]} 36. Qb6 {[%clk 0:00:16]}  Qxd1+ {[%clk 0:00:17]} 37. Kg2 {[%clk 0:00:16]}  Re8 {[%clk 0:00:14]} 38. Qxc6 {[%clk 0:00:16]}  Be4+ {[%clk 0:00:13]} 0-1


[Site "https://www.chess.com"]

[Event "Early Titled Tuesday Blitz | February 8 2022"]
[White "Poormosavi, Seyed Kian"]
[Black "Dahanayake, Isara Banidu"]
[WhiteFideId "12585807"]
[BlackFideId "9932631"]
[WhiteElo "2116"]
[BlackElo "1394"]
[Result "1-0"]
[Round "02"]
[TimeControl "180+1"]
[Date "2022.02.08"]
[WhiteClock "0:01:50"]
[BlackClock "0:00:36"]

1. e4 {[%clk 0:03:00]}  c5 {[%clk 0:02:57]} 2. Nf3 {[%clk 0:02:59]}  d6 {[%clk 0:02:57]} 3. c3 {[%clk 0:02:59]}  Nf6 {[%clk 0:02:54]} 4. Be2 {[%clk 0:03:00]}  Nc6 {[%clk 0:02:53]} 5. d4 {[%clk 0:02:52]}  cxd4 {[%clk 0:02:43]} 6. cxd4 {[%clk 0:02:53]}  d5 {[%clk 0:02:41]} 7. e5 {[%clk 0:02:52]}  Ne4 {[%clk 0:02:34]} 8. O-O {[%clk 0:02:53]}  g6 {[%clk 0:02:30]} 9. Ne1 {[%clk 0:02:47]}  h6 {[%clk 0:01:28]} 10. h4 {[%clk 0:02:33]}  Qb6 {[%clk 0:01:14]} 11. Nc2 {[%clk 0:02:32]}  Bf5 {[%clk 0:01:07]} 12. g4 {[%clk 0:02:21]}  Be6 {[%clk 0:01:06]} 13. Kg2 {[%clk 0:02:21]}  h5 {[%clk 0:01:04]} 14. f3 {[%clk 0:02:20]}  hxg4 {[%clk 0:01:04]} 15. fxe4 {[%clk 0:02:20]}  dxe4 {[%clk 0:00:56]} 16. Nc3 {[%clk 0:02:13]}  Rd8 {[%clk 0:00:55]} 17. d5 {[%clk 0:02:04]}  Nxe5 {[%clk 0:00:53]} 18. Be3 {[%clk 0:02:00]}  Qxb2 {[%clk 0:00:52]} 19. Bd4 {[%clk 0:02:00]}  Bg7 {[%clk 0:00:47]} 20. Nb5 {[%clk 0:01:53]}  Rxd5 {[%clk 0:00:37]} 21. Nc7+ {[%clk 0:01:52]}  Kf8 {[%clk 0:00:36]} 22. Nxe6+ {[%clk 0:01:50]} 1-0


[Site "https://www.chess.com"]

[Event "Early Titled Tuesday Blitz | February 8 2022"]
[White "Rakhmanov, Aleksandr"]
[Black "Kuzmin, Roman"]
[WhiteFideId "4173708"]
[BlackFideId "44134932"]
[WhiteElo "2500"]
[BlackElo "1978"]
[Result "1-0"]
[Round "02"]
[TimeControl "180+1"]
[Date "2022.02.08"]
[WhiteClock "0:00:12"]
[BlackClock "0:00:21"]

1. c4 {[%clk 0:02:54]}  e5 {[%clk 0:02:58]} 2. Nf3 {[%clk 0:02:52]}  Nc6 {[%clk 0:02:58]} 3. d4 {[%clk 0:02:47]}  exd4 {[%clk 0:02:59]} 4. Nxd4 {[%clk 0:02:46]}  Nf6 {[%clk 0:02:59]} 5. Nxc6 {[%clk 0:02:39]}  bxc6 {[%clk 0:03:00]} 6. g3 {[%clk 0:02:39]}  Bb4+ {[%clk 0:02:49]} 7. Bd2 {[%clk 0:02:38]}  Bxd2+ {[%clk 0:02:47]} 8. Qxd2 {[%clk 0:02:27]}  O-O {[%clk 0:02:38]} 9. Bg2 {[%clk 0:02:21]}  Rb8 {[%clk 0:02:27]} 10. Nc3 {[%clk 0:02:18]}  c5 {[%clk 0:02:15]} 11. O-O {[%clk 0:02:12]}  d6 {[%clk 0:02:16]} 12. e4 {[%clk 0:02:06]}  Bb7 {[%clk 0:02:07]} 13. Rfe1 {[%clk 0:02:05]}  Nd7 {[%clk 0:01:37]} 14. f4 {[%clk 0:02:04]}  Re8 {[%clk 0:01:32]} 15. Rad1 {[%clk 0:02:01]}  Bc6 {[%clk 0:01:30]} 16. e5 {[%clk 0:01:39]}  Bxg2 {[%clk 0:01:29]} 17. Kxg2 {[%clk 0:01:39]}  Nb6 {[%clk 0:01:14]} 18. b3 {[%clk 0:01:28]}  dxe5 {[%clk 0:01:15]} 19. Qxd8 {[%clk 0:01:16]}  Rbxd8 {[%clk 0:01:15]} 20. Rxe5 {[%clk 0:00:48]}  Kf8 {[%clk 0:01:00]} 21. Rxd8 {[%clk 0:00:44]}  Rxd8 {[%clk 0:01:01]} 22. Rxc5 {[%clk 0:00:44]}  Rd2+ {[%clk 0:00:59]} 23. Kh3 {[%clk 0:00:38]}  Rc2 {[%clk 0:00:41]} 24. Ne4 {[%clk 0:00:30]}  Rxa2 {[%clk 0:00:39]} 25. Rxc7 {[%clk 0:00:29]}  Rb2 {[%clk 0:00:25]} 26. Nd6 {[%clk 0:00:20]}  f6 {[%clk 0:00:25]} 27. Rf7+ {[%clk 0:00:13]}  Kg8 {[%clk 0:00:25]} 28. Rxa7 {[%clk 0:00:14]}  Rxb3 {[%clk 0:00:25]} 29. c5 {[%clk 0:00:14]}  Nc8 {[%clk 0:00:21]} 30. Ra8 {[%clk 0:00:12]}  Rc3 {[%clk 0:00:21]} 31. Rxc8# {[%clk 0:00:12]} 1-0


[Site "https://www.chess.com"]

[Event "Early Titled Tuesday Blitz | February 8 2022"]
[White "Ratnakaran, K."]
[Black "Mirzanurov, Bulat"]
[WhiteFideId "5005507"]
[BlackFideId "4184521"]
[WhiteElo "2391"]
[BlackElo "2116"]
[Result "1-0"]
[Round "02"]
[TimeControl "180+1"]
[Date "2022.02.08"]
[WhiteClock "0:02:18"]
[BlackClock "0:01:46"]

1. e4 {[%clk 0:03:00]}  c5 {[%clk 0:02:59]} 2. Nf3 {[%clk 0:02:55]}  d6 {[%clk 0:02:58]} 3. c3 {[%clk 0:02:55]}  Nf6 {[%clk 0:02:55]} 4. h3 {[%clk 0:02:55]}  Nc6 {[%clk 0:02:48]} 5. Bd3 {[%clk 0:02:54]}  e5 {[%clk 0:02:47]} 6. O-O {[%clk 0:02:54]}  d5 {[%clk 0:02:46]} 7. exd5 {[%clk 0:02:53]}  Qxd5 {[%clk 0:02:45]} 8. Bb5 {[%clk 0:02:53]}  Bd6 {[%clk 0:02:41]} 9. Re1 {[%clk 0:02:49]}  O-O {[%clk 0:02:35]} 10. d3 {[%clk 0:02:49]}  Bc7 {[%clk 0:02:31]} 11. Bg5 {[%clk 0:02:46]}  Nd7 {[%clk 0:02:21]} 12. Nbd2 {[%clk 0:02:40]}  a6 {[%clk 0:02:11]} 13. Bc4 {[%clk 0:02:40]}  Qd6 {[%clk 0:02:06]} 14. Ne4 {[%clk 0:02:40]}  Qg6 {[%clk 0:02:05]} 15. Nh4 {[%clk 0:02:40]}  Kh8 {[%clk 0:01:55]} 16. Nxg6+ {[%clk 0:02:38]}  hxg6 {[%clk 0:01:55]} 17. Qg4 {[%clk 0:02:35]}  Nf6 {[%clk 0:01:53]} 18. Qh4+ {[%clk 0:02:33]}  Nh7 {[%clk 0:01:53]} 19. Be7 {[%clk 0:02:19]}  Nxe7 {[%clk 0:01:46]} 20. Ng5 {[%clk 0:02:18]}  Bd8 {[%clk 0:01:46]} 21. Qxh7# {[%clk 0:02:18]} 1-0


[Site "https://www.chess.com"]

[Event "Early Titled Tuesday Blitz | February 8 2022"]
[White "Reprintsev, Alexander"]
[Black "Zaichenko, Daria"]
[WhiteFideId "14100541"]
[BlackFideId "4197453"]
[WhiteElo "2126"]
[BlackElo "2039"]
[Result "0-1"]
[Round "02"]
[TimeControl "180+1"]
[Date "2022.02.08"]
[WhiteClock "0:00:13"]
[BlackClock "0:00:11"]

1. e4 {[%clk 0:03:00]}  c6 {[%clk 0:03:00]} 2. b3 {[%clk 0:02:50]}  d5 {[%clk 0:02:58]} 3. Qe2 {[%clk 0:02:50]}  Nd7 {[%clk 0:02:52]} 4. Bb2 {[%clk 0:02:48]}  e6 {[%clk 0:02:51]} 5. h4 {[%clk 0:02:33]}  dxe4 {[%clk 0:02:51]} 6. Nc3 {[%clk 0:02:28]}  Ngf6 {[%clk 0:02:42]} 7. Nxe4 {[%clk 0:02:19]}  Nxe4 {[%clk 0:02:41]} 8. Qxe4 {[%clk 0:02:16]}  Nf6 {[%clk 0:02:41]} 9. Qf3 {[%clk 0:02:12]}  Be7 {[%clk 0:02:36]} 10. O-O-O {[%clk 0:00:56]}  Qa5 {[%clk 0:02:31]} 11. Kb1 {[%clk 0:00:55]}  Bd7 {[%clk 0:02:29]} 12. Nh3 {[%clk 0:00:53]}  O-O-O {[%clk 0:02:27]} 13. Ng5 {[%clk 0:00:53]}  Rhf8 {[%clk 0:02:23]} 14. Bd3 {[%clk 0:00:53]}  c5 {[%clk 0:02:16]} 15. Nxh7 {[%clk 0:00:51]}  Bc6 {[%clk 0:02:08]} 16. Qg3 {[%clk 0:00:49]}  Nxh7 {[%clk 0:02:07]} 17. Bxh7 {[%clk 0:00:48]}  g6 {[%clk 0:02:02]} 18. h5 {[%clk 0:00:48]}  Bd6 {[%clk 0:02:01]} 19. Qh4 {[%clk 0:00:47]}  Rd7 {[%clk 0:01:49]} 20. hxg6 {[%clk 0:00:46]}  fxg6 {[%clk 0:01:49]} 21. Bxg6 {[%clk 0:00:45]}  Be7 {[%clk 0:01:48]} 22. Qh3 {[%clk 0:00:44]}  Rxf2 {[%clk 0:01:40]} 23. Qxe6 {[%clk 0:00:39]}  Rxd2 {[%clk 0:01:28]} 24. Rxd2 {[%clk 0:00:37]}  Qxd2 {[%clk 0:01:26]} 25. Bf5 {[%clk 0:00:37]}  Kc7 {[%clk 0:01:13]} 26. Be5+ {[%clk 0:00:36]}  Kb6 {[%clk 0:01:11]} 27. Qc4 {[%clk 0:00:34]}  Bb5 {[%clk 0:01:05]} 28. Qe6+ {[%clk 0:00:31]}  Bc6 {[%clk 0:01:04]} 29. Bd3 {[%clk 0:00:26]}  Qxg2 {[%clk 0:00:55]} 30. Re1 {[%clk 0:00:24]}  Bh4 {[%clk 0:00:45]} 31. Rf1 {[%clk 0:00:24]}  Rxd3 {[%clk 0:00:40]} 32. Rc1 {[%clk 0:00:23]}  Rd7 {[%clk 0:00:31]} 33. Bb8 {[%clk 0:00:23]}  Bg5 {[%clk 0:00:23]} 34. Re1 {[%clk 0:00:22]}  Qd5 {[%clk 0:00:20]} 35. Qe2 {[%clk 0:00:22]}  Qf5 {[%clk 0:00:21]} 36. a4 {[%clk 0:00:19]}  a5 {[%clk 0:00:19]} 37. Rf1 {[%clk 0:00:17]}  Qd5 {[%clk 0:00:18]} 38. Rg1 {[%clk 0:00:17]}  Bf6 {[%clk 0:00:17]} 39. Rf1 {[%clk 0:00:17]}  Qd4 {[%clk 0:00:17]} 40. Rxf6 {[%clk 0:00:17]}  Qxf6 {[%clk 0:00:16]} 41. Ka2 {[%clk 0:00:18]}  Qc3 {[%clk 0:00:15]} 42. Qh2 {[%clk 0:00:16]}  Rd2 {[%clk 0:00:12]} 43. Qc7+ {[%clk 0:00:16]}  Ka6 {[%clk 0:00:12]} 44. Qh7 {[%clk 0:00:13]}  Rxc2+ {[%clk 0:00:11]} 45. Kb1 {[%clk 0:00:13]}  Qb2# {[%clk 0:00:11]} 0-1


[Site "https://www.chess.com"]

[Event "Early Titled Tuesday Blitz | February 8 2022"]
[White "Roman, Rodrigo"]
[Black "Przybylski, Wojciech"]
[WhiteFideId "3701220"]
[BlackFideId "1117599"]
[WhiteElo "2001"]
[BlackElo "2133"]
[Result "0-1"]
[Round "02"]
[TimeControl "180+1"]
[Date "2022.02.08"]
[WhiteClock "0:00:04"]
[BlackClock "0:00:09"]

1. h3 {[%clk 0:02:59]}  e5 {[%clk 0:02:55]} 2. a3 {[%clk 0:03:00]}  d5 {[%clk 0:02:54]} 3. e3 {[%clk 0:03:00]}  Bd6 {[%clk 0:02:53]} 4. d3 {[%clk 0:03:00]}  Be6 {[%clk 0:02:53]} 5. Ke2 {[%clk 0:03:01]}  Ne7 {[%clk 0:02:53]} 6. Ke1 {[%clk 0:03:02]}  Nd7 {[%clk 0:02:53]} 7. Be2 {[%clk 0:03:02]}  c5 {[%clk 0:02:52]} 8. Qd2 {[%clk 0:03:02]}  f5 {[%clk 0:02:52]} 9. Qd1 {[%clk 0:03:03]}  O-O {[%clk 0:02:52]} 10. Nd2 {[%clk 0:03:03]}  f4 {[%clk 0:02:52]} 11. e4 {[%clk 0:03:02]}  Nf6 {[%clk 0:02:49]} 12. Ngf3 {[%clk 0:03:01]}  Nc6 {[%clk 0:02:41]} 13. c3 {[%clk 0:02:56]}  Rc8 {[%clk 0:02:39]} 14. Qc2 {[%clk 0:02:54]}  b5 {[%clk 0:02:36]} 15. exd5 {[%clk 0:02:48]}  Bxd5 {[%clk 0:02:35]} 16. Ne4 {[%clk 0:02:49]}  Be7 {[%clk 0:02:31]} 17. Bd2 {[%clk 0:02:41]}  c4 {[%clk 0:02:28]} 18. Nxf6+ {[%clk 0:02:39]}  Bxf6 {[%clk 0:02:26]} 19. dxc4 {[%clk 0:02:33]}  bxc4 {[%clk 0:02:26]} 20. Bc1 {[%clk 0:02:12]}  e4 {[%clk 0:02:10]} 21. Nd2 {[%clk 0:02:10]}  Ne5 {[%clk 0:02:08]} 22. Nxe4 {[%clk 0:02:07]}  Nd3+ {[%clk 0:01:59]} 23. Bxd3 {[%clk 0:02:06]}  cxd3 {[%clk 0:01:59]} 24. Qxd3 {[%clk 0:01:55]}  Bxe4 {[%clk 0:01:58]} 25. Qxd8 {[%clk 0:01:56]}  Rcxd8 {[%clk 0:01:50]} 26. Rg1 {[%clk 0:01:27]}  Rfe8 {[%clk 0:01:40]} 27. Bxf4 {[%clk 0:01:23]}  Bxg2+ {[%clk 0:01:39]} 28. Be3 {[%clk 0:01:23]}  Bf3 {[%clk 0:01:35]} 29. Rg3 {[%clk 0:01:19]}  Bh5 {[%clk 0:01:33]} 30. h4 {[%clk 0:01:02]}  a6 {[%clk 0:01:28]} 31. Kf1 {[%clk 0:01:01]}  Kf7 {[%clk 0:01:27]} 32. Bg5 {[%clk 0:00:52]}  Re4 {[%clk 0:01:26]} 33. Bxf6 {[%clk 0:00:51]}  gxf6 {[%clk 0:01:26]} 34. b4 {[%clk 0:00:23]}  Rd2 {[%clk 0:01:22]} 35. Kg2 {[%clk 0:00:23]}  Rf4 {[%clk 0:01:19]} 36. Rf1 {[%clk 0:00:23]}  Bg6 {[%clk 0:01:12]} 37. a4 {[%clk 0:00:13]}  Bd3 {[%clk 0:01:10]} 38. Re1 {[%clk 0:00:12]}  Rfxf2+ {[%clk 0:00:54]} 39. Kg1 {[%clk 0:00:13]}  Rf4 {[%clk 0:00:50]} 40. Ree3 {[%clk 0:00:12]}  Bc4 {[%clk 0:00:48]} 41. Re1 {[%clk 0:00:11]}  Rxh4 {[%clk 0:00:46]} 42. b5 {[%clk 0:00:07]}  axb5 {[%clk 0:00:46]} 43. axb5 {[%clk 0:00:08]}  Bxb5 {[%clk 0:00:45]} 44. Rb1 {[%clk 0:00:08]}  Rh5 {[%clk 0:00:43]} 45. c4 {[%clk 0:00:07]}  Bxc4 {[%clk 0:00:37]} 46. Rb7+ {[%clk 0:00:07]}  Ke6 {[%clk 0:00:38]} 47. Rb6+ {[%clk 0:00:07]}  Ke5 {[%clk 0:00:33]} 48. Re3+ {[%clk 0:00:06]}  Kf4 {[%clk 0:00:27]} 49. Rxf6+ {[%clk 0:00:06]}  Kxe3 {[%clk 0:00:25]} 50. Rf3+ {[%clk 0:00:06]}  Kd4 {[%clk 0:00:19]} 51. Rf4+ {[%clk 0:00:06]}  Kc3 {[%clk 0:00:19]} 52. Rf3+ {[%clk 0:00:05]}  Rd3 {[%clk 0:00:19]} 53. Rf1 {[%clk 0:00:01]}  Rg3+ {[%clk 0:00:15]} 54. Kf2 {[%clk 0:00:02]}  Bxf1 {[%clk 0:00:11]} 55. Ke1 {[%clk 0:00:02]}  Be2 {[%clk 0:00:10]} 56. Kf2 {[%clk 0:00:03]}  Rf3+ {[%clk 0:00:09]} 57. Ke1 {[%clk 0:00:03]}  Rf4 {[%clk 0:00:09]} 58. Kxe2 {[%clk 0:00:04]}  Re5+ {[%clk 0:00:09]} 59. Kd1 {[%clk 0:00:04]}  Rf1# {[%clk 0:00:09]} 0-1


[Site "https://www.chess.com"]